fUSD/lending_fUSD_20260331
["ID","MTS","AMOUNT","RATE_DAILY","PERIOD"]
[419168786,1774995044520,-1032.72554709,0.00015999,5]
[419168787,1774995044531,-1032.72554708,0.00015999,5]
[419168788,1774995044542,-1032.72554709,0.00015999,5]
[419168789,1774995044553,-1032.72554709,0.00015999,5]
[419168790,1774995044563,-205423.56234131,0.00016,2]
[419168791,1774995044573,-1927319.96861423,0.00016,2]
[419168792,1774995044583,-378429.37190461,0.00016,2]
[419168795,1774995045980,-452.77341858,0.00016,2]
[419168797,1774995046827,-3254.94287202,0.00012946,2]
[419168798,1774995046847,-209.01044519,0.00012946,2]
[419168799,1774995046858,-168.0,0.00014251,2]
[419168800,1774995046868,-455.16158369,0.00015801,2]
[419168801,1774995046930,-1544.83841631,0.00015801,2]
[419168802,1774995046939,-793.19156603,0.000159,2]
[419168806,1774995049025,-159.5,0.00013699,2]
[419168807,1774995049035,-2000.0,0.00015401,2]
[419168808,1774995049044,-431.46888089,0.00015501,2]
[419168809,1774995049241,-2000.0,0.00015301,2]
[419168810,1774995049251,-1568.53111911,0.00015501,2]
[419168811,1774995049260,-2000.0,0.00015601,2]
[419168812,1774995049271,-2000.0,0.00015701,2]
[419168813,1774995049282,-2418.63876606,0.000159,2]
[419168814,1774995049292,-2000.0,0.00015901,2]
[419168815,1774995049302,-173025.97937752,0.00016,2]
[419168816,1774995049317,-4940.67,0.00016,2]
[419168821,1774995340935,220.5,5.303e-05,2]
[419168822,1774995341220,220.5,5.582e-05,2]
[419168823,1774995341349,220.5,5.862e-05,2]
[419168824,1774995341552,220.5,6.141e-05,2]
[419168825,1774995341748,220.5,6.42e-05,2]
[419168826,1774995342169,220.5,6.699e-05,2]
[419168827,1774995342375,220.5,6.978e-05,2]
[419168828,1774995342582,220.5,7.257e-05,2]
[419168829,1774995342799,220.5,7.536e-05,2]
[419168830,1774995343017,220.5,7.815e-05,2]
[419168831,1774995343215,220.5,8.095e-05,2]
[419168832,1774995343418,220.5,8.374e-05,2]
[419168840,1774995905008,394.2,8.11e-05,2]
[419168841,1774995967941,600.0,7.817e-05,2]
[419168843,1774996027815,6949.34992,7.945e-05,2]
[419168844,1774996033260,1137.1,7.386e-05,2]
[419168845,1774996033638,800.0,7.521e-05,2]
[419168846,1774996034157,880.0,7.797e-05,2]
[419168847,1774996034662,233.56008,7.909e-05,2]
[419168848,1774996034688,866.43992,7.909e-05,2]
[419168849,1774996035174,870.0,8.064e-05,2]
[419168850,1774996035678,570.0,8.283e-05,2]
[419168851,1774996099826,590.0,7.51e-05,2]
[419168852,1774996100355,352.14,8.231e-05,2]
[419168853,1774996152256,-700.0,8.555e-05,2]
[419168854,1774996152278,-1270.0,8.628e-05,2]
[419168855,1774996152301,-220.5,8.653e-05,2]
[419168856,1774996152323,-966.09,8.723e-05,2]
[419168857,1774996152346,-482.62,8.846e-05,2]
[419168858,1774996152367,-244.53365806,8.846e-05,2]
[419168859,1774996152389,-261.32,8.901e-05,2]
[419168860,1774996152410,-220.5,8.932e-05,2]
[419168861,1774996152432,-220.5,9.211e-05,2]
[419168862,1774996152453,-1524.16,9.39e-05,2]
[419168863,1774996152475,-220.5,9.49e-05,2]
[419168864,1774996152497,-202.72,9.673e-05,2]
[419168865,1774996152518,-220.5,9.769e-05,2]
[419168866,1774996152538,-479.0,9.939e-05,2]
[419168867,1774996152558,-165.0,9.959e-05,2]
[419168868,1774996152579,-150.0,0.0001,2]
[419168869,1774996152600,-853.0,0.0001002,2]
[419168870,1774996152620,-532.0,0.0001004,2]
[419168871,1774996152642,-220.5,0.00010048,2]
[419168872,1774996152663,-300.0,0.00010059,2]
[419168873,1774996152684,-190.0,0.0001006,2]
[419168874,1774996152711,-381.0,0.00010244,2]
[419168875,1774996152733,-399.0,0.00010327,2]
[419168876,1774996152755,-220.5,0.00010328,2]
[419168877,1774996152776,-327.0,0.00010347,2]
[419168878,1774996152798,-341.0,0.00010368,2]
[419168879,1774996154173,-220.5,0.00010607,2]
[419168880,1774996154196,-520.0,0.00010958,2]
[419168881,1774996154220,-1514.0,0.0001098,2]
[419168882,1774996154248,-357.33993258,0.00011064,2]
[419168883,1774996162839,1112.73,7.753e-05,2]
[419168884,1774996163345,914.32,7.838e-05,2]
[419168885,1774996163883,935.09,7.867e-05,2]
[419168886,1774996164775,301.25614843,7.964e-05,2]
[419168887,1774996164799,1598.74385157,7.964e-05,2]
[419168888,1774996164926,1500.0,8.089e-05,2]
[419168889,1774996165437,1724.90031409,8.163e-05,2]
[419168890,1774996165465,75.09968591,8.163e-05,2]
[419168891,1774996165949,900.0,8.135e-05,2]
[419168892,1774996166463,926.16646252,8.237e-05,2]
[419168893,1774996166485,273.83353748,8.237e-05,2]
[419168894,1774996166978,1000.0,8.3e-05,2]
[419168895,1774996167508,1300.0,8.47e-05,2]
[419168896,1774996169330,700.0,8.523e-05,2]
[419168897,1774996172088,-1640.0,8.604e-05,2]
[419168898,1774996172114,-1800.0,8.665e-05,2]
[419168899,1774996172136,-1540.0,8.687e-05,2]
[419168900,1774996172162,-1600.0,8.821e-05,2]
[419168901,1774996172184,-1090.0,8.934e-05,2]
[419168902,1774996172207,-698.81451914,8.979e-05,2]
[419168905,1774996232156,-202.84548086,8.979e-05,2]
[419168906,1774996232166,-1270.0,9.078e-05,2]
[419168907,1774996232175,-736.34,9.185e-05,2]
[419168908,1774996232184,-1110.74,9.204e-05,2]
[419168909,1774996232194,-463.0,0.00011856,2]
[419168910,1774996232203,-425.0,0.00011911,2]
[419168911,1774996232212,-192.2,0.00011928,2]
[419168912,1774996232222,-150.0,0.00012,2]
[419168913,1774996232231,-466.0,0.00012047,2]
[419168914,1774996232240,-449.0,0.00012077,2]
[419168915,1774996232249,-1731.0,0.00012315,2]
[419168916,1774996232258,-1200.0,0.00012338,2]
[419168917,1774996232268,-693.0,0.00012339,2]
[419168918,1774996232277,-454.65,0.00012353,2]
[419168919,1774996232286,-150.0,0.00012353,2]
[419168920,1774996232296,-150.0,0.00012353,2]
[419168921,1774996232305,-150.0,0.00012353,2]
[419168922,1774996232315,-150.0,0.00012353,2]
[419168923,1774996232324,-150.0,0.00012353,2]
[419168924,1774996232333,-150.0,0.00012353,2]
[419168925,1774996232342,-150.0,0.00012353,2]
[419168926,1774996232351,-150.0,0.00012353,2]
[419168927,1774996232361,-150.0,0.00012353,2]
[419168928,1774996232370,-150.0,0.00012353,2]
[419168929,1774996232379,-200.0,0.00012614,2]
[419168930,1774996232388,-454.65,0.00012627,2]
[419168931,1774996232398,-454.65,0.00012901,2]
[419168932,1774996232407,-250.0,0.00013,2]
[419168933,1774996232416,-502.0,0.00013111,2]
[419168934,1774996232425,-454.65,0.00013175,2]
[419168935,1774996232434,-194.3116,0.000134,7]
[419168936,1774996232444,-3240.0,0.00013425,2]
[419168937,1774996232454,-200.0,0.00013435,2]
[419168938,1774996232464,-151.0,0.00013435,2]
[419168939,1774996232473,-151.0,0.00013435,2]
[419168941,1774996232483,-233.66873316,0.00013435,2]
[419168943,1774996232492,-454.65583943,0.00013449,2]
[419168944,1774996232501,-150.0,0.00013533,2]
[419168945,1774996232511,-150.0,0.00013533,2]
[419168946,1774996232521,-1680.0,0.00013572,2]
[419168947,1774996232530,-2500.0,0.00013633,2]
[419168948,1774996232539,-879.5849,0.00013633,2]
[419168949,1774996232549,-500.0,0.00013644,2]
[419168950,1774996232560,-2164.9708233,0.00013668,2]
[419168951,1774996232570,-500.0,0.00013673,2]
[419168952,1774996232580,-809.04575145,0.00013673,2]
[419168953,1774996232591,-323.97310552,0.00013673,2]
[419168954,1774996232600,-370.78532708,0.00013673,2]
[419168955,1774996232611,-1544.67714248,0.00013673,2]
[419168956,1774996232620,-299.99,0.00013699,2]
[419168957,1774996232630,-9999.99,0.00013699,2]
[419168958,1774996232641,-1190.37,0.00013699,2]
[419168959,1774996232651,-150.99,0.00013699,2]
[419168960,1774996232661,-9999.99,0.00013699,2]
[419168961,1774996232670,-4999.99,0.00013699,2]
[419168962,1774996232682,-9999.99,0.00013699,2]
[419168963,1774996232694,-517.89,0.00013699,2]
[419168964,1774996232703,-451.42320288,0.00013699,2]
[419168965,1774996232714,-200.0,0.00013699,2]
[419168966,1774996232723,-500.0,0.00013699,2]
[419168967,1774996232733,-203.37,0.00013699,2]
[419168968,1774996232743,-1660.622,0.00013699,2]
[419168969,1774996232753,-150.0,0.00013726,2]
[419168970,1774996232764,-150.0,0.00013726,2]
[419168971,1774996232775,-150.0,0.00013726,2]
[419168972,1774996232785,-150.0,0.00013726,2]
[419168973,1774996232794,-150.0,0.00013726,2]
[419168974,1774996232804,-150.0,0.00013726,2]
[419168975,1774996232813,-150.0,0.00013726,2]
[419168976,1774996232823,-150.00000001,0.00013726,2]
[419168977,1774996232832,-500.0,0.00013732,2]
[419168978,1774996232841,-500.0,0.00013732,2]
[419168979,1774996232851,-500.0,0.00013732,2]
[419168980,1774996232860,-500.0,0.00013732,2]
[419168981,1774996232869,-500.0,0.00013732,2]
[419168982,1774996232879,-500.0,0.00013732,2]
[419168983,1774996232888,-500.0,0.00013732,2]
[419168984,1774996232899,-500.0,0.00013732,2]
[419168985,1774996232908,-500.0,0.00013732,2]
[419168986,1774996232918,-500.0,0.00013732,2]
[419168987,1774996232928,-500.0,0.00013732,2]
[419168988,1774996232938,-500.0,0.00013732,2]
[419168989,1774996232947,-500.0,0.00013732,2]
[419168990,1774996232957,-500.0,0.00013732,2]
[419168991,1774996232967,-500.0,0.00013732,2]
[419168992,1774996232976,-500.0,0.00013732,2]
[419168993,1774996232990,-500.0,0.00013732,2]
[419168994,1774996232999,-500.0,0.00013732,2]
[419168995,1774996233009,-500.0,0.00013732,2]
[419168996,1774996233020,-500.0,0.00013732,2]
[419168997,1774996233029,-500.0,0.00013732,2]
[419168998,1774996233039,-500.0,0.00013732,2]
[419168999,1774996233048,-500.0,0.00013732,2]
[419169000,1774996233057,-500.0,0.00013732,2]
[419169001,1774996233067,-500.0,0.00013732,2]
[419169002,1774996233076,-500.0,0.00013732,2]
[419169003,1774996233086,-500.0,0.00013732,2]
[419169004,1774996233095,-500.0,0.00013732,2]
[419169005,1774996233105,-500.0,0.00013732,2]
[419169006,1774996233114,-577.79394014,0.00013732,2]
[419169007,1774996233123,-500.0,0.00013732,2]
[419169008,1774996233132,-500.0,0.00013732,2]
[419169009,1774996233142,-500.0,0.00013732,2]
[419169010,1774996233152,-250.0,0.00013732,2]
[419169011,1774996233162,-500.0,0.00013732,2]
[419169012,1774996233172,-500.0,0.00013732,2]
[419169013,1774996233183,-159.0373193,0.00013732,2]
[419169014,1774996233192,-500.0,0.00013732,2]
[419169015,1774996233202,-160.12861994,0.00013732,2]
[419169016,1774996233212,-500.0,0.00013732,2]
[419169017,1774996233221,-170.55573387,0.00013732,2]
[419169018,1774996233231,-217.56806355,0.00013732,2]
[419169019,1774996233241,-500.0,0.00013732,2]
[419169020,1774996233250,-642.21475514,0.00013732,2]
[419169021,1774996233260,-500.0,0.00013732,2]
[419169022,1774996233269,-500.0,0.00013732,2]
[419169023,1774996233279,-533.14016549,0.00013732,2]
[419169024,1774996233288,-1561.0,0.00013732,5]
[419169025,1774996233298,-403116.61776631,0.00013733,2]
[419169026,1774996233312,-206402.58246702,0.00013733,2]
[419169027,1774996233323,-228118.58680416,0.00013733,2]
[419169028,1774996233335,-349052.66144848,0.00013733,2]
[419169029,1774996233346,-1254.41808677,0.00013733,2]
[419169030,1774996233384,-829.98709775,0.00013733,2]
[419169032,1774996238794,-249.51,8.708e-05,2]
[419169033,1774996238803,-243.96468057,0.00013723,2]
[419169035,1774996238814,-1409.15483271,0.00013733,2]
[419169038,1774996238826,-3866.52337604,0.00013733,2]
[419169069,1774996239056,-1305949.46812076,0.00013733,2]
[419169071,1774996239065,-227.02109222,0.00013768,2]
[419169072,1774996239075,-601.0194143,0.00013773,2]
[419169074,1774996239084,-500.40303914,0.00013773,2]
[419169076,1774996239093,-500.0,0.00013868,2]
[419169078,1774996239103,-500.0,0.00013868,2]
[419169080,1774996239112,-500.0,0.00013868,2]
[419169082,1774996239122,-500.0,0.00013868,2]
[419169084,1774996239131,-500.0,0.00013868,2]
[419169086,1774996239140,-500.0,0.00013868,2]
[419169088,1774996239149,-500.0,0.00013868,2]
[419169090,1774996239159,-500.0,0.00013868,2]
[419169092,1774996239168,-500.0,0.00013868,2]
[419169094,1774996239177,-486.29760765,0.00013868,2]
[419169096,1774996239187,-500.0,0.00013868,2]
[419169098,1774996239196,-500.0,0.00013868,2]
[419169100,1774996239205,-500.0,0.00013868,2]
[419169102,1774996239214,-500.0,0.00013868,2]
[419169104,1774996239223,-500.0,0.00013868,2]
[419169105,1774996239232,-500.0,0.00013868,2]
[419169106,1774996239242,-526.45929112,0.00013868,2]
[419169107,1774996239251,-500.0,0.00013868,2]
[419169108,1774996239260,-500.0,0.00013868,2]
[419169109,1774996239270,-500.0,0.00013868,2]
[419169110,1774996239279,-500.0,0.00013868,2]
[419169111,1774996239289,-500.0,0.00013868,2]
[419169112,1774996239299,-299.5230674,0.00013868,2]
[419169113,1774996239309,-500.0,0.00013868,2]
[419169114,1774996239318,-500.0,0.00013868,2]
[419169115,1774996239328,-500.0,0.00013868,2]
[419169116,1774996239338,-152.71046763,0.00013868,2]
[419169118,1774996239349,-500.0,0.00013868,2]
[419169120,1774996239359,-500.0,0.00013868,2]
[419169122,1774996239369,-500.0,0.00013868,2]
[419169124,1774996239378,-500.0,0.00013868,2]
[419169126,1774996239387,-321.15185708,0.00013868,2]
[419169128,1774996239397,-150.0,0.00013868,2]
[419169130,1774996239406,-370.78532707,0.0001392,2]
[419169132,1774996239416,-1544.67714241,0.0001392,2]
[419169133,1774996239424,-500.0,0.00013973,2]
[419169134,1774996239434,-2164.97082325,0.00013987,2]
[419169135,1774996239444,-500.0,0.0001399,2]
[419169136,1774996239453,-502.0,0.00014067,2]
[419169137,1774996239462,-168.0,0.00014081,2]
[419169138,1774996239472,-1500.0,0.00014098,2]
[419169139,1774996239482,-168.0,0.00014132,2]
[419169140,1774996239492,-168.0,0.00014142,2]
[419169141,1774996239502,-370.78532707,0.00014168,2]
[419169142,1774996239511,-1544.67714241,0.00014168,2]
[419169143,1774996239520,-1000.0,0.00014221,2]
[419169144,1774996239530,-2164.97082325,0.00014306,2]
[419169145,1774996239539,-168.0,0.00014344,2]
[419169146,1774996239549,-500.0,0.000144,2]
[419169147,1774996239558,-150.0,0.000144,2]
[419169148,1774996239567,-370.78532707,0.00014415,2]
[419169149,1774996239577,-1544.67714241,0.00014415,2]
[419169150,1774996239586,-168.0,0.00014463,2]
[419169151,1774996239595,-2000.0,0.000145,2]
[419169152,1774996239607,-2164.97082325,0.00014625,2]
[419169153,1774996239617,-370.78532707,0.00014663,2]
[419169154,1774996239627,-1544.67714241,0.00014663,2]
[419169155,1774996239638,-500.0,0.000147,2]
[419169156,1774996239647,-1286.0,0.0001472,2]
[419169157,1774996239656,-332.23329004,0.00014768,2]
[419169158,1774996239666,-323.9731055,0.00014787,2]
[419169159,1774996239674,-251.7134,0.000148,12]
[419169160,1774996239684,-370.78532707,0.0001491,2]
[419169161,1774996239693,-1544.67714241,0.0001491,2]
[419169162,1774996239703,-2259.0,0.00014929,2]
[419169163,1774996239712,-300.0,0.00015,2]
[419169164,1774996239722,-500.0,0.00015,2]
[419169165,1774996239731,-502.0,0.00015022,3]
[419169166,1774996239741,-500.0,0.00015031,2]
[419169167,1774996239750,-150.0,0.00015031,2]
[419169168,1774996239760,-500.0,0.00015031,2]
[419169169,1774996239769,-500.0,0.00015031,2]
[419169170,1774996239779,-500.0,0.00015031,2]
[419169171,1774996239788,-150.0,0.00015031,2]
[419169172,1774996239798,-500.0,0.00015031,2]
[419169173,1774996239807,-150.0,0.00015031,2]
[419169174,1774996239817,-189.5363432,0.00015031,2]
[419169175,1774996239826,-150.0,0.00015031,2]
[419169176,1774996239836,-150.0,0.00015031,2]
[419169177,1774996239845,-164.92841658,0.00015031,2]
[419169178,1774996239854,-150.0,0.00015031,2]
[419169179,1774996239864,-150.0,0.00015031,2]
[419169180,1774996239873,-150.0,0.00015031,2]
[419169181,1774996239882,-150.0,0.00015031,2]
[419169182,1774996239891,-217.21457939,0.00015031,2]
[419169183,1774996239900,-168.0,0.00015133,2]
[419169184,1774996239909,-370.78532707,0.00015158,2]
[419169185,1774996239918,-1544.67714241,0.00015158,2]
[419169186,1774996239927,-500.0,0.000153,2]
[419169187,1774996239936,-779.0,0.000153,2]
[419169188,1774996239946,-1000.0,0.000153,2]
[419169189,1774996239955,-10000.0,0.00015302,2]
[419169190,1774996239965,-500.0,0.00015305,2]
[419169191,1774996239974,-370.78532707,0.00015405,2]
[419169192,1774996239985,-1544.67714241,0.00015405,2]
[419169193,1774996239995,-168.0,0.00015412,2]
[419169194,1774996240005,-168.0,0.00015442,2]
[419169195,1774996240014,-3077.29293325,0.000155,2]
[419169196,1774996240024,-507.82732743,0.000155,2]
[419169197,1774996240034,-150.6153884,0.000155,2]
[419169198,1774996240044,-2141.2202214,0.000155,2]
[419169199,1774996240054,-224.32485354,0.000155,2]
[419169200,1774996240063,-632.5,0.00015507,2]
[419169201,1774996240072,-357.2823536,0.00015573,2]
[419169202,1774996240081,-222.96972885,0.00015573,2]
[419169203,1774996240090,-979333.57270921,0.00015573,2]
[419169207,1774996240611,-9858.316375,0.00015573,2]
[419169208,1774996240667,-361.22993896,0.00015573,2]
[419169214,1774996243521,-442.0,0.00012267,2]
[419169215,1774996243532,-2164.97082325,0.00014943,2]
[419169216,1774996243542,-3805.85763983,0.00015573,2]
[419169234,1774996246653,-3859.825537,0.00015573,2]
[419169235,1774996246663,-500.0,0.000156,2]
[419169236,1774996246672,-370.78532707,0.00015653,2]
[419169237,1774996246681,-1544.67714241,0.00015653,2]
[419169238,1774996246691,-201.145137,0.0001568,7]
[419169239,1774996246700,-632.5,0.00015895,2]
[419169240,1774996246709,-5000.0,0.000159,2]
[419169241,1774996246718,-323.9731055,0.000159,2]
[419169242,1774996246727,-370.78532707,0.000159,2]
[419169243,1774996246737,-1544.67714241,0.000159,2]
[419169244,1774996246746,-500.0,0.000159,2]
[419169245,1774996246755,-1940.73286294,0.00015901,2]
[419169246,1774996246765,-168.0,0.0001595,2]
[419169247,1774996246774,-502.0,0.00015978,4]
[419169248,1774996246783,-156.83314246,0.00015985,2]
[419169249,1774996246792,-166.3425176,0.00015985,2]
[419169250,1774996246801,-219.29509966,0.00015985,2]
[419169251,1774996246811,-10338.0466114,0.00015992,2]
[419169252,1774996246820,-1945.0,0.00016,5]
[419169254,1774996246830,-375404.54057558,0.00016,2]
[419169258,1774996246853,-547.460072,0.00016,2]
[419169264,1774997021771,152.0,6.591e-05,2]
[419169265,1774997022005,152.0,6.591e-05,2]
[419169266,1774997023956,152.0,6.591e-05,2]
[419169267,1774997024029,152.0,6.591e-05,2]
[419169268,1774997024093,152.0,6.591e-05,2]
[419169269,1774997024159,152.0,6.591e-05,2]
[419169270,1774997024202,152.0,6.591e-05,2]
[419169271,1774997024270,152.0,6.591e-05,2]
[419169272,1774997024312,152.0,6.591e-05,2]
[419169273,1774997024363,152.0,6.591e-05,2]
[419169274,1774997024491,152.0,6.591e-05,2]
[419169275,1774997024544,152.0,6.591e-05,2]
[419169276,1774997024602,152.0,6.591e-05,2]
[419169284,1774997220939,209.35,6.144e-05,2]
[419169285,1774997237107,-196.72439595,0.00012216,2]
[419169286,1774997249084,-79.46560405,0.00012216,2]
[419169287,1774997249107,-197.03029125,0.00012223,2]
[419169288,1774997249129,-150.0,0.0001223,2]
[419169289,1774997249152,-52.73929944,0.0001223,2]
[419169290,1774997253119,-97.26070056,0.0001223,2]
[419169291,1774997253142,-176.65908474,0.00012643,2]
[419169292,1774997266942,2488.3268713,0.000143,10]
[419169293,1774997284612,436.47,5.594e-05,2]
[419169294,1774997285435,821.03,6.112e-05,2]
[419169295,1774997285953,689.0,6.642e-05,2]
[419169297,1774997412467,800.0,6.091e-05,2]
[419169298,1774997413108,940.0,6.267e-05,2]
[419169299,1774997413620,415.5,6.356e-05,2]
[419169300,1774997414144,861.89,6.509e-05,2]
[419169301,1774997414656,234.89665302,6.679e-05,2]
[419169302,1774997414680,575.10334698,6.679e-05,2]
[419169303,1774997415159,600.0,6.921e-05,2]
[419169304,1774997415664,425.57,6.961e-05,2]
[419169305,1774997417451,688.81,7.143e-05,2]
[419169310,1774997431651,-53.24835497,0.00012543,2]
[419169315,1774997437707,-190.18420995,0.00012543,2]
[419169316,1774997437718,-439.53672856,0.00012578,2]
[419169317,1774997437728,-1301.05,0.00012612,2]
[419169318,1774997437738,-202.71878769,0.00012643,2]
[419169319,1774997437748,-363.34091526,0.00012643,2]
[419169320,1774997437758,-150.0,0.00012643,2]
[419169321,1774997437768,-104.54561114,0.00012927,2]
[419169322,1774997437781,-62.14438886,0.00012927,2]
[419169323,1774997437790,-243.43256492,0.00012971,2]
[419169324,1774997437800,-250.0,0.00013,2]
[419169325,1774997437810,-502.0,0.00013111,2]
[419169327,1774997437821,-241.0,0.00013305,2]
[419169328,1774997437831,-576.0,0.00013337,2]
[419169329,1774997437842,-279.30287436,0.00013399,2]
[419169330,1774997437852,-227.02109222,0.00013399,2]
[419169331,1774997437863,-243.43256492,0.00013399,2]
[419169332,1774997437872,-300.0,0.00013399,2]
[419169333,1774997437882,-1200.0,0.00013399,2]
[419169335,1774997437891,-1623.72811749,0.00013399,2]
[419169337,1774997437901,-2500.0,0.000134,3]
[419169339,1774997437911,-300.0,0.00013436,2]
[419169341,1774997437920,-250.0,0.00013437,2]
[419169342,1774997437930,-224.0,0.00013471,2]
[419169343,1774997437940,-601.0194143,0.00013473,2]
[419169344,1774997437950,-500.0,0.00013473,2]
[419169345,1774997437962,-152.29764449,0.00013498,2]
[419169346,1774997437972,-165.14278835,0.00013498,2]
[419169347,1774997437983,-500.0,0.00013498,2]
[419169348,1774997437995,-500.0,0.00013498,2]
[419169349,1774997438005,-392.74535505,0.00013498,2]
[419169350,1774997438018,-299.5503286,0.00013498,2]
[419169351,1774997438028,-500.0,0.00013498,2]
[419169352,1774997438039,-282.77939402,0.00013498,2]
[419169353,1774997438049,-500.0,0.00013498,2]
[419169354,1774997438059,-500.0,0.00013498,2]
[419169355,1774997438069,-500.0,0.00013498,2]
[419169356,1774997438079,-500.0,0.00013498,2]
[419169357,1774997438089,-500.0,0.00013498,2]
[419169358,1774997438100,-500.0,0.00013498,2]
[419169359,1774997438110,-174.92174853,0.00013498,2]
[419169360,1774997438119,-983629.2359,0.00013499,2]
[419169361,1774997438129,-89111.8701,0.00013499,2]
[419169362,1774997438139,-693.467787,0.00013499,2]
[419169363,1774997438149,-1081.27399975,0.00013499,2]
[419169364,1774997438159,-166.0,0.00013562,2]
[419169365,1774997438169,-151.0,0.0001359,2]
[419169366,1774997438180,-151.0,0.0001359,2]
[419169367,1774997438191,-151.0,0.0001359,2]
[419169368,1774997438200,-151.0,0.0001359,2]
[419169369,1774997438210,-151.0,0.0001359,2]
[419169370,1774997438220,-167.379,0.00013598,2]
[419169371,1774997438229,-1795.741,0.00013598,2]
[419169372,1774997438239,-500.0,0.00013598,2]
[419169373,1774997438250,-2000.0,0.00013613,2]
[419169374,1774997438259,-7604.97,0.00013699,2]
[419169375,1774997438269,-9999.99,0.00013699,2]
[419169376,1774997438280,-999.99,0.00013699,2]
[419169377,1774997438290,-150.99,0.00013699,2]
[419169378,1774997438300,-150.99,0.00013699,2]
[419169379,1774997438311,-173.26,0.00013699,2]
[419169380,1774997438322,-166.66,0.00013699,2]
[419169381,1774997438332,-157.61,0.00013699,2]
[419169382,1774997438343,-150.0,0.000137,2]
[419169383,1774997438353,-1081.27399968,0.00013766,2]
[419169384,1774997438363,-1357.99078211,0.00013768,2]
[419169385,1774997438373,-5000.0,0.00013797,2]
[419169386,1774997438383,-166.66,0.00013836,2]
[419169387,1774997438393,-500.0,0.00013872,2]
[419169388,1774997438403,-500.0,0.00013894,2]
[419169389,1774997438412,-500.0,0.00013894,2]
[419169390,1774997438422,-500.0,0.00013894,2]
[419169391,1774997438432,-500.0,0.00013894,2]
[419169392,1774997438443,-343.81833637,0.00013907,2]
[419169393,1774997438453,-195.0,0.00013907,2]
[419169394,1774997438463,-195.0,0.00013907,2]
[419169395,1774997438473,-195.0,0.00013907,2]
[419169396,1774997438483,-195.0,0.00013907,2]
[419169397,1774997438492,-272.84,0.00013907,2]
[419169398,1774997438502,-2500.0,0.00013907,2]
[419169399,1774997438511,-2500.0,0.00013907,2]
[419169400,1774997438522,-2500.0,0.00013907,2]
[419169401,1774997438531,-2500.0,0.00013907,2]
[419169402,1774997438541,-1281.10985873,0.00013907,2]
[419169403,1774997438551,-500.0,0.00013907,2]
[419169404,1774997438560,-500.0,0.00013907,2]
[419169405,1774997438570,-501.73040568,0.00013907,2]
[419169406,1774997438581,-166.66,0.00013973,2]
[419169407,1774997438591,-832.23329004,0.00014021,2]
[419169408,1774997438600,-1081.27399968,0.00014033,2]
[419169409,1774997438610,-502.0,0.00014095,2]
[419169410,1774997438620,-166.66,0.0001411,2]
[419169411,1774997438630,-153.76,0.00014188,2]
[419169412,1774997438639,-166.66,0.00014247,2]
[419169413,1774997438649,-1081.27399968,0.00014299,2]
[419169414,1774997438658,-166.66,0.00014384,2]
[419169415,1774997438668,-1451.0,0.00014468,5]
[419169416,1774997438678,-957.0,0.00014468,5]
[419169417,1774997438687,-2000.0,0.000145,2]
[419169418,1774997438696,-1081.27399968,0.00014566,2]
[419169419,1774997438706,-173.26,0.00014612,2]
[419169420,1774997438715,-420.0,0.00014688,2]
[419169421,1774997438725,-1355.0,0.00014739,2]